bitfinex/quotes_SOLUSD_20211001
["timestamp","ask_amount","ask_price","bid_price","bid_amount"]
[1633053601251,74.0095,142.52,142.46,8.12635087]
[1633053601448,74.0095,142.52,142.49,3.9926473]
[1633053602951,5.63542961,142.54,142.49,3.9926473]
[1633053603148,5.63542961,142.54,142.48,12.12494038]
[1633053603552,5.63542961,142.54,142.47,3.98534049]
[1633053604349,32.84855922,142.54,142.47,3.98534049]
[1633053604549,382.61346125,142.54,142.47,3.98534049]
[1633053604749,382.61346125,142.54,142.47,8.12612229]
[1633053604950,355.40033164,142.54,142.47,8.12612229]
[1633053605354,9.54742439,142.56,142.48,3.9776794]
[1633053605553,9.54742439,142.56,142.49,3.97236598]
[1633053605753,9.27902148,142.58,142.5,3.94901303]
[1633053605952,9.27902148,142.58,142.52,30.19023547]
[1633053606152,9.27902148,142.58,142.52,48.30223547]
[1633053606354,9.27902148,142.58,142.53,8.12180234]
[1633053607151,9.27902148,142.58,142.52,48.30223547]
[1633053607753,5.63542961,142.57,142.52,30.19023547]
[1633053609954,9.27902148,142.58,142.52,30.19023547]
[1633053611158,44.57455886,142.58,142.51,2.96]
[1633053612354,14.91445109,142.58,142.51,2.96]
[1633053612556,9.27902148,142.58,142.51,2.96]
[1633053618263,8.59542961,142.62,142.51,2.96]
[1633053619064,5.63542961,142.62,142.51,2.96]
[1633053619270,28.81876459,142.61,142.52,1.92367253]
[1633053619465,28.81876459,142.61,142.53,2.96]
[1633053619664,5.63542961,142.6,142.53,2.96]
[1633053620066,5.63542961,142.6,142.51,4.887529]
[1633053620265,5.63542961,142.6,142.51,2.96]
[1633053620464,5.63542961,142.6,142.51,4.89277507]
[1633053620664,5.63542961,142.6,142.51,2.96]
[1633053621667,5.63542961,142.6,142.51,4.8699447]
[1633053623369,5.63542961,142.6,142.52,28.36065117]
[1633053623568,300.22163645,142.63,142.53,5.48398434]
[1633053623768,300.22163645,142.63,142.58,1.85547049]
[1633053623769,300.20075645,142.63,142.58,1.85547049]
[1633053623969,2.96,142.69,142.59,1.84497523]
[1633053624173,8.59542961,142.69,142.59,1.84497523]
[1633053624371,26.18466631,142.68,142.59,27.0135933]
[1633053624569,26.18466631,142.68,142.59,28.86303667]
[1633053625371,26.18466631,142.68,142.59,27.0135933]
[1633053625572,31.82009592,142.68,142.59,28.86381629]
[1633053625971,31.82009592,142.68,142.59,27.0135933]
[1633053626572,31.82009592,142.68,142.59,28.86647612]
[1633053626772,31.82009592,142.68,142.59,27.0135933]
[1633053626973,31.82009592,142.68,142.58,4.8140793]
[1633053627372,29.32009592,142.68,142.58,4.8140793]
[1633053628072,29.32009592,142.68,142.59,1.85062952]
[1633053628872,29.32009592,142.68,142.58,30.12240699]
[1633053629474,28.82009592,142.68,142.59,1.85472173]
[1633053629773,28.82009592,142.68,142.6,1.85088204]
[1633053630473,28.82009592,142.68,142.59,1.85469542]
[1633053630674,2.96,142.67,142.58,1.86482425]
[1633053630874,0.46,142.67,142.57,1.86879831]
[1633053631073,5.63542961,142.66,142.57,1.86879831]
[1633053631274,25.12546141,142.65,142.57,1.86879831]
[1633053631573,5.63542961,142.64,142.57,4.82879831]
[1633053631773,5.63542961,142.64,142.57,2.46]
[1633053632175,5.63542961,142.64,142.56,1.87891922]
[1633053632374,5.63542961,142.64,142.54,2.96]
[1633053632375,5.63542961,142.64,142.57,1.88024194]
[1633053632776,5.63542961,142.64,142.6,0.7043]
[1633053632975,28.08546141,142.65,142.6,0.7043]
[1633053633775,33.72089102,142.65,142.6,0.7043]
[1633053637578,33.72089102,142.65,142.6,2.59808113]
[1633053637979,25.12546141,142.65,142.6,2.59808113]
[1633053643886,25.12546141,142.65,142.61,1.88459165]
[1633053644385,5.63542961,142.67,142.61,1.88459165]
[1633053644688,2.96,142.68,142.61,1.88459165]
[1633053645388,26.82826578,142.68,142.61,1.88459165]
[1633053645790,26.82826578,142.68,142.62,1.89032672]
[1633053645989,2.96,142.68,142.62,1.89032672]
[1633053646892,8.59542961,142.68,142.62,1.89032672]
[1633053647092,31.29391632,142.68,142.62,1.89032672]
[1633053649393,8.59542961,142.68,142.62,1.89032672]
[1633053650596,8.59542961,142.68,142.62,1.39032672]
[1633053650796,8.59542961,142.68,142.63,23.05523211]
[1633053652697,8.59542961,142.68,142.6,4.37683926]
[1633053652900,8.59542961,142.68,142.61,8.11879668]
[1633053653399,8.59542961,142.68,142.61,11.7966197]
[1633053653599,8.59542961,142.68,142.62,28.35723836]
[1633053654501,5.63542961,142.68,142.62,28.35723836]
[1633053655901,5.63542961,142.68,142.61,6.63782302]
[1633053656102,5.63542961,142.68,142.62,8.11899511]
[1633053661503,5.63542961,142.68,142.6,33.76041872]
[1633053661905,5.63542961,142.68,142.6,4.468702]
[1633053663005,5.63542961,142.68,142.61,3.75428444]
[1633053663507,5.63542961,142.68,142.6,4.4586602]
[1633053664606,24.24029757,142.66,142.6,0.7043]
[1633053664806,24.24029757,142.66,142.6,4.50923406]
[1633053665208,29.87572718,142.66,142.6,4.50923406]
[1633053665808,29.87572718,142.66,142.6,0.7043]
[1633053666209,29.87572718,142.66,142.6,4.48915413]
[1633053667209,29.87572718,142.66,142.6,0.7043]
[1633053667412,29.87572718,142.66,142.6,4.48823703]
[1633053667610,29.87572718,142.66,142.6,0.7043]
[1633053674818,2.96,142.65,142.6,0.7043]
[1633053675220,5.63542961,142.64,142.6,0.7043]
[1633053675620,21.98084288,142.63,142.6,0.7043]
[1633053676020,5.63542961,142.62,142.6,0.7043]
[1633053678225,8.59542961,142.62,142.6,0.0043]
[1633053678423,23.43901895,142.62,142.6,0.0043]
[1633053678625,5.63542961,142.61,142.6,0.0043]
[1633053679023,5.63542961,142.61,142.53,3.9754662]
[1633053679423,26.72991726,142.6,142.53,3.9754662]
[1633053679624,26.72991726,142.6,142.51,3.99324402]
[1633053679824,5.63542961,142.59,142.51,3.99324402]
[1633053680024,8.59542961,142.59,142.51,3.99324402]
[1633053680425,26.70123587,142.57,142.51,3.99324402]
[1633053680825,5.63542961,142.56,142.51,3.99324402]
[1633053681025,5.63542961,142.56,142.5,4.00773242]
[1633053681225,5.63542961,142.56,142.46,2.98088]
[1633053681226,5.63542961,142.56,142.49,4.00340986]
[1633053683225,5.63542961,142.56,142.48,4.00405946]
[1633053684329,23.61029668,142.54,142.47,4.00665537]
[1633053684733,5.63542961,142.53,142.47,4.00665537]
[1633053685936,8.59542961,142.53,142.46,4.01729506]
[1633053686333,5.63542961,142.52,142.46,4.01729506]
[1633053686533,5.63542961,142.52,142.45,4.01984804]
[1633053686735,29.72478978,142.51,142.45,4.01984804]
[1633053687148,5.63542961,142.5,142.46,4.01843142]
[1633053687348,5.63542961,142.5,142.42,31.21399888]
[1633053687349,5.63542961,142.5,142.45,34.128635]
[1633053687549,5.63542961,142.5,142.46,4.00528627]
[1633053690055,5.63542961,142.5,142.47,3.98339278]
[1633053690453,5.63542961,142.5,142.46,3.95852994]
[1633053690853,8.59542961,142.53,142.46,3.95852994]
[1633053692654,8.59542961,142.53,142.47,3.92657411]
[1633053693256,27.50951201,142.52,142.46,3.93164045]
[1633053693457,30.46951201,142.52,142.46,3.93164045]
[1633053693656,5.63542961,142.51,142.46,3.93164045]
[1633053696857,5.63542961,142.54,142.47,3.93366347]
[1633053697057,5.63542961,142.54,142.48,3.92507853]
[1633053697462,28.10743433,142.56,142.49,3.90980432]
[1633053697658,78.5153,142.57,142.51,3.87775349]
[1633053697859,433.42598184,142.59,142.52,23.28471254]
[1633053698163,433.42598184,142.59,142.52,27.14434522]
[1633053698164,427.79055223,142.59,142.52,27.14434522]
[1633053698559,424.83055223,142.59,142.52,27.14434522]
[1633053698966,424.83055223,142.59,142.53,3.83962554]
[1633053699467,424.83055223,142.59,142.54,6.7864136]
[1633053699667,424.83055223,142.59,142.55,3.80400066]
[1633053700068,5.63542961,142.64,142.55,3.80400066]
[1633053700270,32.85288352,142.64,142.56,29.11028483]
[1633053701268,5.63542961,142.64,142.56,29.11028483]
[1633053701468,336.11790214,142.65,142.56,29.11028483]
[1633053701668,336.11790214,142.65,142.56,32.91151991]
[1633053702270,363.80201303,142.65,142.56,32.91151991]
[1633053702469,336.63346759,142.65,142.56,32.91151991]
[1633053703568,342.2688972,142.65,142.56,3.80123508]
[1633053703769,342.2688972,142.65,142.55,3.8088633]
[1633053704571,342.2688972,142.65,142.54,6.77488665]
[1633053704970,342.2688972,142.65,142.54,3.81488665]
[1633053706072,342.2688972,142.65,142.53,30.84110965]
[1633053706472,356.3180421,142.65,142.53,27.01318913]
[1633053706671,356.3180421,142.65,142.53,30.84140039]
[1633053706871,356.3180421,142.65,142.53,3.82821126]
[1633053707071,364.47466236,142.65,142.53,3.82821126]
[1633053707272,383.48658754,142.65,142.53,3.82821126]
[1633053709975,410.47018798,142.65,142.53,3.82821126]
[1633053710675,410.47018798,142.65,142.54,28.08334364]
[1633053711877,355.80247665,142.65,142.55,2.96]
[1633053712077,322.9985016,142.65,142.55,6.74325503]
[1633053712277,308.9493567,142.65,142.55,6.74325503]
[1633053712879,29.85537018,142.64,142.55,6.74325503]
[1633053714675,29.85537018,142.64,142.55,2.96]
[1633053715676,35.49079979,142.64,142.55,2.96]
[1633053716078,29.85537018,142.64,142.55,2.96]
[1633053716876,29.85537018,142.64,142.55,6.80239202]
[1633053718181,57.55979979,142.64,142.51,5.75650153]
[1633053718380,57.55979979,142.64,142.5,8.77804601]
[1633053718381,2.96,142.63,142.5,8.77804601]
[1633053718578,2.96,142.63,142.5,2.96]
[1633053718779,80.41187439,142.62,142.48,2.96]
[1633053718983,2.96,142.61,142.48,2.96]
[1633053719182,29.28899168,142.6,142.48,2.96]
[1633053719382,2.96,142.59,142.48,2.96]
[1633053719581,2.96,142.59,142.45,2.96]
[1633053719782,37.87472181,142.59,142.45,2.96]
[1633053719982,28.36864004,142.57,142.45,2.96]
[1633053720181,2.96,142.56,142.45,2.96]
[1633053720381,25.81217877,142.56,142.45,2.96]
[1633053720582,5.63542961,142.55,142.45,2.96]
[1633053720783,25.57919488,142.54,142.45,2.96]
[1633053720984,41.80819488,142.54,142.45,2.96]
[1633053721583,50.40362449,142.54,142.43,8.97386758]
[1633053721782,67.62037365,142.54,142.43,6.01386758]
[1633053722185,67.62037365,142.54,142.42,33.46391949]
[1633053722382,67.62037365,142.54,142.43,14.63511744]
[1633053723184,67.62037365,142.54,142.44,6.05129715]
[1633053723382,67.62037365,142.54,142.45,25.07825373]
[1633053723582,45.75594404,142.54,142.45,25.07825373]
[1633053724381,45.75594404,142.54,142.45,31.09119074]
[1633053725282,51.39137365,142.54,142.45,31.09119074]
[1633053725583,51.39137365,142.54,142.46,14.5703088]
[1633053726184,51.39137365,142.54,142.45,31.09119074]
[1633053726383,51.39137365,142.54,142.45,6.01293701]
[1633053726784,45.75594404,142.54,142.45,6.01293701]
[1633053727185,51.39137365,142.54,142.45,6.01293701]
[1633053728487,51.39137365,142.54,142.44,20.74510697]
[1633053729291,51.39137365,142.54,142.44,6.08732995]
[1633053729686,51.39137365,142.54,142.43,6.08736394]
[1633053730291,51.39137365,142.54,142.44,25.0249924]
[1633053730689,51.39137365,142.54,142.44,31.11148552]
[1633053731689,51.39137365,142.54,142.44,25.0249924]
[1633053733092,25.81217877,142.54,142.44,25.0249924]
[1633053733292,25.81217877,142.54,142.44,27.9849924]
[1633053733892,25.81217877,142.54,142.44,34.07094711]
[1633053734091,27.46254509,142.53,142.44,34.07094711]
[1633053734492,33.0979747,142.53,142.44,34.07094711]
[1633053734694,33.0979747,142.53,142.44,9.04595471]
[1633053734892,33.0979747,142.53,142.44,2.96]
[1633053738399,53.76128723,142.53,142.42,9.04642887]
[1633053739204,53.76128723,142.53,142.42,2.96]
[1633053739602,53.76128723,142.53,142.42,17.61367335]
[1633053740000,17.5594,142.52,142.41,6.08633093]
[1633053740201,2.96,142.51,142.39,23.70228998]
[1633053740400,102.40174214,142.51,142.39,9.04722288]
[1633053740600,23.33874214,142.5,142.39,9.04722288]
[1633053741000,25.80177531,142.49,142.39,9.04722288]
[1633053742004,31.43720492,142.49,142.39,9.04722288]
[1633053742204,31.43720492,142.49,142.39,2.96]
[1633053743408,31.43720492,142.49,142.39,9.04810114]
[1633053745408,31.43720492,142.49,142.4,29.97978651]
[1633053745810,31.43720492,142.49,142.4,6.08953033]
[1633053747009,31.43720492,142.49,142.4,20.74921732]
[1633053747710,31.43720492,142.49,142.41,6.09053749]
[1633053748612,31.43720492,142.49,142.42,6.0913422]
[1633053748811,31.43720492,142.49,142.42,34.6083849]
[1633053749412,5.63542961,142.49,142.42,34.6083849]
[1633053749611,5.63542961,142.49,142.43,14.6652322]
[1633053749811,5.63542961,142.49,142.43,20.7563966]
[1633053750210,5.63542961,142.49,142.43,6.0911644]
[1633053751113,25.55830972,142.48,142.43,6.0911644]
[1633053751514,5.63542961,142.47,142.43,6.0911644]
[1633053751914,5.63542961,142.47,142.42,6.09169367]
[1633053752912,5.63542961,142.47,142.43,6.0915167]
[1633053756014,5.63542961,142.47,142.44,6.09164429]
[1633053757121,5.63542961,142.47,142.42,6.0925861]
[1633053757319,20.53642961,142.47,142.42,6.0925861]
[1633053757518,38.23974214,142.47,142.42,6.0925861]
[1633053757717,5.63542961,142.46,142.42,6.0925861]
[1633053757918,26.54679572,142.45,142.42,6.0925861]
[1633053758118,26.54679572,142.45,142.4,6.09312711]
[1633053760119,5.63542961,142.46,142.4,6.09312711]
[1633053761323,5.63542961,142.46,142.41,6.09292077]
[1633053764525,5.63542961,142.46,142.4,6.09338668]
[1633053766633,5.63542961,142.46,142.41,6.09365646]
[1633053767635,8.59542961,142.46,142.41,6.09365646]
[1633053767833,8.59542961,142.46,142.39,22.79753449]
[1633053767834,56.68989232,142.46,142.4,6.09434902]
[1633053768033,5.63542961,142.45,142.38,6.09491524]
[1633053768234,2.96,142.44,142.38,6.09491524]
[1633053768631,33.06978109,142.43,142.38,6.09491524]
[1633053768833,48.47178109,142.43,142.38,6.09491524]
[1633053770334,33.06978109,142.43,142.38,6.09491524]
[1633053771337,33.06978109,142.43,142.37,6.09435055]
[1633053771742,2.96,142.42,142.37,6.09435055]
[1633053773045,8.59542961,142.42,142.37,6.09435055]
[1633053774142,25.17742961,142.42,142.37,6.09435055]
[1633053774543,25.17742961,142.42,142.36,6.09435472]
[1633053775542,25.17742961,142.42,142.35,6.09405428]
[1633053776743,8.59542961,142.42,142.41,2.03116855]
[1633053777146,8.59542961,142.42,142.35,6.09405428]
[1633053777746,8.59542961,142.42,142.35,30.13635027]
[1633053778146,8.59542961,142.42,142.36,22.65874133]
[1633053778346,450.62085546,142.44,142.36,22.65874133]
[1633053778547,450.62085546,142.44,142.43,2.03078881]
[1633053778752,2.96,142.44,142.37,6.09222678]
[1633053778949,2.96,142.47,142.37,6.09222678]
[1633053779148,25.47598921,142.47,142.46,2.0304691]
[1633053779747,2.96,142.47,142.46,2.0304691]
[1633053779976,2.96,142.51,142.46,2.0304691]
[1633053780154,2.96,142.51,142.44,21.58]
[1633053780350,2.96,142.51,142.48,2.03022726]
[1633053780548,2.96,142.51,142.49,2.03017684]
[1633053781756,2.96,142.51,142.5,2.03004507]
[1633053782973,2.96,142.51,142.49,2.02996153]
[1633053784051,2.96,142.51,142.5,2.03001432]
[1633053784452,2.96,142.51,142.49,2.02991657]
[1633053784760,2.96,142.51,142.5,2.03008235]
[1633053786556,22.86642801,142.52,142.5,2.03008235]
[1633053787154,22.86642801,142.52,142.49,1.82900565]
[1633053787956,22.86642801,142.52,142.46,8.12713849]
[1633053790259,17.2309984,142.52,142.46,8.12713849]
[1633053790661,55.00124675,142.54,142.46,8.12713849]
[1633053791266,25.24865023,142.54,142.46,8.12713849]
[1633053792886,25.24865023,142.54,142.46,24.38513849]
[1633053793288,25.24865023,142.54,142.47,8.12635287]
[1633053793492,25.24865023,142.54,142.48,21.26898777]
[1633053793687,22.28865023,142.54,142.48,21.26898777]
[1633053793887,22.28865023,142.54,142.49,8.12590087]
[1633053795188,22.28865023,142.54,142.48,21.26898777]
[1633053796088,401.49291476,142.55,142.49,11.08472682]
[1633053796288,5.63542961,142.59,142.49,27.67172682]
[1633053796487,2.96,142.61,142.5,8.12419089]
[1633053796687,8.59542961,142.61,142.51,2.96]
[1633053796888,34.70809577,142.61,142.52,24.92864765]
[1633053797688,63.87146817,142.61,142.52,24.92864765]
[1633053799088,63.87146817,142.61,142.51,2.96]
[1633053802893,76.2242,142.6,142.51,2.96]
[1633053803496,60.91146817,142.61,142.51,2.96]
[1633053807002,60.91146817,142.61,142.53,22.12981542]
[1633053807201,60.91146817,142.61,142.53,25.08981542]
[1633053809399,34.79880201,142.61,142.53,25.08981542]
[1633053810201,34.79880201,142.61,142.54,8.12317136]
[1633053810701,29.89429601,142.6,142.53,2.96]
[1633053811104,5.63542961,142.59,142.53,2.96]
[1633053812106,34.79880201,142.61,142.53,2.96]
[1633053812304,5.63542961,142.6,142.53,2.96]
[1633053813104,28.55315968,142.6,142.53,2.96]
[1633053813909,52.27315968,142.6,142.49,6.99508426]
[1633053814106,124.46571784,142.6,142.5,8.12577816]
[1633053814306,73.5903,142.59,142.5,8.12577816]
[1633053814506,2.96,142.58,142.48,12.17366251]
[1633053814709,81.49260693,142.58,142.48,4.04750975]
[1633053814907,51.28774429,142.57,142.48,12.17407167]
[1633053815108,51.28774429,142.57,142.48,31.96704803]
[1633053815109,71.11374429,142.57,142.48,31.96704803]
[1633053815307,21.83710466,142.56,142.48,23.84048611]
[1633053815506,21.83710466,142.56,142.49,8.12628602]
[1633053815707,5.63542961,142.55,142.49,8.12628602]
[1633053816309,305.29538889,142.55,142.49,8.12628602]
[1633053816606,24.12494065,142.54,142.49,8.12628602]
[1633053816807,24.12494065,142.54,142.48,12.17508416]
[1633053818008,24.12494065,142.54,142.48,8.12626949]
[1633053818207,24.12494065,142.54,142.48,12.18577829]
[1633053818809,24.12494065,142.54,142.48,8.12626949]
[1633053819211,24.12494065,142.54,142.48,12.18584407]
[1633053819409,24.12494065,142.54,142.48,8.12626949]
[1633053819812,24.12494065,142.54,142.47,4.05985424]
[1633053820011,24.12494065,142.54,142.46,4.05997219]
[1633053820411,24.12494065,142.54,142.47,4.05989608]
[1633053821012,29.76037026,142.54,142.46,4.06003886]
[1633053821212,118.18194531,142.54,142.46,4.06003886]
[1633053821414,17.5576,142.53,142.46,4.06003886]
[1633053821612,17.5576,142.53,142.45,12.1875469]
[1633053821812,5.63542961,142.52,142.45,12.1875469]
[1633053822012,28.26442961,142.52,142.45,4.06029424]
[1633053822215,28.26442961,142.52,142.44,12.18852678]
[1633053822414,27.4551894,142.51,142.44,8.12823687]
[1633053822615,30.4151894,142.51,142.44,8.12823687]
[1633053822813,5.63542961,142.5,142.43,4.06045564]
[1633053824116,5.63542961,142.5,142.42,12.18921956]
[1633053825013,5.63542961,142.5,142.42,4.06002914]
[1633053825616,5.63542961,142.5,142.41,8.12928796]
[1633053826016,23.20940327,142.48,142.39,7.01959523]
[1633053826216,39.25840327,142.48,142.4,8.1305473]
[1633053826417,44.89383288,142.48,142.4,8.1305473]
[1633053827219,44.89383288,142.48,142.39,2.96]
[1633053828118,44.89383288,142.48,142.4,8.13022832]
[1633053829319,44.89383288,142.48,142.39,2.96]
[1633053830822,28.84483288,142.48,142.39,2.96]
[1633053838835,2.96,142.47,142.38,4.05827005]
[1633053839038,21.954,142.47,142.36,4.05950928]
[1633053839234,52.69202702,142.46,142.35,4.05991198]
[1633053839432,52.69202702,142.46,142.35,8.13282643]
[1633053839433,82.1247,142.45,142.35,8.13282643]
[1633053839633,21.70224872,142.44,142.34,4.06022573]
[1633053839834,2.96,142.43,142.34,4.06022573]
[1633053840236,29.05404351,142.41,142.33,12.19343592]
[1633053840437,44.98904351,142.41,142.33,12.19343592]
[1633053840634,50.62447312,142.41,142.33,36.97753169]
[1633053840833,68.19717312,142.41,142.34,8.13370169]
[1633053841034,44.98904351,142.41,142.34,12.19473091]
[1633053841837,44.98904351,142.41,142.34,8.13370169]
[1633053842236,44.98904351,142.41,142.34,12.19550214]
[1633053842635,44.98904351,142.41,142.34,8.13370169]
[1633053843439,44.98904351,142.41,142.33,12.19592303]
[1633053843637,2.96,142.4,142.33,12.19592303]
[1633053843837,2.96,142.4,142.33,4.06195919]
[1633053844638,2.96,142.4,142.34,30.34866509]
[1633053844838,2.96,142.4,142.35,8.13370442]
[1633053845039,456.6962883,142.42,142.36,4.06105385]
[1633053845241,453.7362883,142.42,142.36,4.06105385]
[1633053845442,453.7362883,142.42,142.35,12.1949834]
[1633053845841,475.15348532,142.42,142.35,12.1949834]
[1633053846642,475.15348532,142.42,142.35,8.13370442]
[1633053847042,480.78891493,142.42,142.35,12.19549727]
[1633053847239,480.78891493,142.42,142.34,12.19548351]
[1633053848243,480.78891493,142.42,142.35,4.06212354]
[1633053851448,480.78891493,142.42,142.36,4.06249229]
[1633053851648,480.78891493,142.42,142.35,4.06273045]
[1633053851849,27.05262663,142.42,142.35,4.06273045]
[1633053852248,27.05262663,142.42,142.35,30.07314533]
[1633053852448,27.05262663,142.42,142.36,8.13358894]
[1633053853049,27.05262663,142.42,142.35,4.06273045]
[1633053854348,5.63542961,142.42,142.36,25.73567055]
[1633053854548,2.96,142.44,142.37,12.19444657]
[1633053854754,63.87689475,142.46,142.4,4.06118417]
[1633053854755,5.63542961,142.46,142.4,4.06118417]
[1633053854949,12.24488714,142.49,142.4,4.06118417]
[1633053855148,2.96,142.49,142.4,4.06118417]
[1633053855352,22.77373736,142.48,142.42,4.06100821]
[1633053856149,22.77373736,142.48,142.41,12.19088151]
[1633053856750,28.40916697,142.48,142.4,4.0613183]
[1633053856952,44.92216697,142.48,142.4,4.0613183]
[1633053857151,44.92216697,142.48,142.39,12.19208188]
[1633053857353,2.96,142.47,142.39,12.19208188]
[1633053857551,2.96,142.47,142.39,4.06158468]
[1633053857750,5.63542961,142.46,142.39,4.06158468]
[1633053857952,23.90103125,142.45,142.39,4.06158468]
[1633053858154,16.837,142.45,142.39,4.06158468]
[1633053859652,5.63542961,142.44,142.36,4.06269787]
[1633053859854,5.63542961,142.44,142.36,12.19565878]
[1633053860055,8.59542961,142.44,142.36,12.19565878]
[1633053860253,29.23642961,142.44,142.36,4.06269787]
[1633053860453,27.90255273,142.43,142.36,4.06269787]
[1633053860853,5.63542961,142.42,142.36,4.06269787]
[1633053863956,5.63542961,142.42,142.37,4.06301018]
[1633053864961,2.96,142.44,142.37,4.06301018]
[1633053865162,93.49559463,142.46,142.37,12.19584261]
[1633053865363,93.49559463,142.46,142.4,4.06267308]
[1633053865961,29.92077483,142.45,142.4,4.06267308]
[1633053869567,35.55620444,142.45,142.4,4.06267308]
[1633053869767,2.96,142.44,142.37,4.06381912]
[1633053869966,2.96,142.44,142.38,4.06370351]
[1633053870174,5.63542961,142.43,142.37,4.0638435]
[1633053870367,29.27745081,142.42,142.38,4.06369453]
[1633053870767,34.91288042,142.42,142.38,4.06369453]
[1633053870967,29.27745081,142.42,142.37,4.06385643]
[1633053871366,29.27745081,142.42,142.38,4.06376291]
[1633053874777,29.27745081,142.42,142.37,4.0641786]
[1633053875172,29.27745081,142.42,142.38,4.06391113]
[1633053876370,29.27745081,142.42,142.37,4.06420888]
[1633053876570,29.27745081,142.42,142.36,4.06422794]
[1633053880677,29.27745081,142.42,142.37,4.06402898]
[1633053880876,29.27745081,142.42,142.36,4.06404514]
[1633053882478,34.91288042,142.42,142.36,4.06404514]
[1633053883678,37.87288042,142.42,142.36,4.06404514]
[1633053886381,37.87288042,142.42,142.37,4.06457295]
[1633053886787,37.87288042,142.42,142.36,4.0646211]
[1633053886981,37.87288042,142.42,142.38,8.13366541]
[1633053887185,37.87288042,142.42,142.36,4.06472572]
[1633053887383,37.87288042,142.42,142.34,4.06526518]
[1633053887384,53.22688042,142.42,142.34,4.06526518]
[1633053887583,82.99397277,142.42,142.35,4.0651073]
[1633053888006,82.99397277,142.42,142.34,4.06505411]
[1633053888386,82.99397277,142.42,142.35,4.06506794]
[1633053888884,30.0,142.41,142.35,4.06506794]
[1633053889084,30.0,142.41,142.34,4.0651328]
[1633053889285,24.73313245,142.39,142.34,4.0651328]
[1633053889486,39.76913245,142.39,142.34,4.0651328]
[1633053889686,45.40456206,142.39,142.34,4.0651328]
[1633053891086,45.40456206,142.39,142.33,4.06497088]
[1633053891287,45.40456206,142.39,142.34,4.06472945]
[1633053891488,30.36856206,142.39,142.34,4.06472945]
[1633053893694,30.36856206,142.39,142.32,4.06501295]
[1633053893896,30.36856206,142.39,142.31,8.13518855]
[1633053893897,30.36856206,142.39,142.33,4.06495424]
[1633053895616,30.36856206,142.39,142.34,4.06444325]
[1633053896013,30.36856206,142.39,142.33,4.06472691]
[1633053897914,5.63542961,142.39,142.34,4.06509487]
[1633053898115,461.02546194,142.4,142.34,32.29191061]
[1633053898316,458.06546194,142.4,142.35,12.1991993]
[1633053898713,398.06546194,142.4,142.35,12.1991993]
[1633053899114,398.06546194,142.4,142.36,4.06496229]
[1633053902818,398.06546194,142.4,142.37,4.06489698]
[1633053903016,398.06546194,142.4,142.37,12.19873917]
[1633053903419,398.06546194,142.4,142.37,4.06489698]
[1633053908320,403.70089155,142.4,142.37,4.06489698]
[1633053908522,403.70089155,142.4,142.39,2.03271257]
[1633053910321,398.06546194,142.4,142.39,2.03271257]
[1633053910622,403.70089155,142.4,142.39,2.03271257]
[1633053911422,398.06546194,142.4,142.38,4.06507217]
[1633053912422,2.96,142.41,142.38,4.06507217]
[1633053913024,80.34766944,142.43,142.38,4.06507217]
[1633053913223,60.0,142.43,142.4,4.0642518]
[1633053913421,60.0,142.43,142.4,19.3882518]
[1633053913823,62.96,142.43,142.41,8.13219892]
[1633053914023,68.59542961,142.43,142.4,2.03252285]
[1633053914422,68.59542961,142.43,142.39,2.03260537]
[1633053914625,8.59542961,142.43,142.39,2.03260537]
[1633053915024,28.09423406,142.42,142.33,6.09781612]
[1633053915225,2.96,142.41,142.31,6.09859895]
[1633053915427,32.04242961,142.41,142.31,6.09859895]
[1633053915624,5.63542961,142.4,142.31,6.09859895]
[1633053915825,2.96,142.39,142.31,6.09859895]
[1633053916228,5.63542961,142.38,142.3,6.09904023]
[1633053916427,28.70227196,142.37,142.31,0.02088]
[1633053916828,34.33770157,142.37,142.3,6.09904023]
[1633053917228,34.33770157,142.37,142.29,6.09917135]
[1633053918028,28.70227196,142.37,142.29,6.12005135]
[1633053918427,28.70227196,142.37,142.3,6.09886664]
[1633053919027,34.33770157,142.37,142.3,6.09886664]
[1633053919426,34.33770157,142.37,142.29,6.11986282]
[1633053919627,34.33770157,142.37,142.29,6.09898282]
[1633053920027,34.33770157,142.37,142.29,5.59898282]
[1633053921230,28.70227196,142.37,142.29,5.59898282]
[1633053922431,34.33770157,142.37,142.29,5.59898282]
[1633053922631,34.33770157,142.37,142.28,17.25143118]
[1633053923233,37.29770157,142.37,142.26,2.96]
[1633053923434,76.0763,142.36,142.24,0.02088]
[1633053923633,2.96,142.35,142.24,2.46]
[1633053923832,8.59542961,142.35,142.24,2.46]
[1633053924035,5.63542961,142.34,142.24,2.46]
[1633053924233,2.96,142.33,142.22,2.96]
[1633053924633,28.32375928,142.31,142.22,2.96]
[1633053925234,28.32375928,142.31,142.22,26.54901854]
[1633053925633,28.32375928,142.31,142.23,13.78068394]
[1633053925834,28.32375928,142.31,142.23,30.77568394]